Cogmind - Beta 14 @@@ ROGUE MODE // 2024.10.26 @ 18:16:46 Player: Darsidian Result: Self-destructed Performance ------------- Evolutions (6) 3000 Regions Visited (19) 3800 Robots Destroyed (310) 1550 Value Destroyed (11888) 11888 Prototype IDs (18) 360 Alien Tech Used (0) 0 Bonus (4779) 4779 TOTAL SCORE: 25377 Bonus ------- High Alert Combat Kills 2483 Follower Combat Kills 1352 Entered Garrisons 600 Used RIF Installer 1500 Friendly Fire -1156 Cogmind --------- Core Integrity 975/1150 Matter 148/300 Energy 27/100 System Corruption 0% Temperature Cool (0) Movement Rolling (110) Ox1 Location -4/Factory Parts ------- > --- POWER (2) -------- (None) > --- PROPULSION (4) --- Centrium Wheel > --- UTILITY (9) ------ Large Storage Unit Visual Processing Unit Advanced Terrain Scanner Advanced Terrain Scan Processor Advanced Melee Analysis Suite Utility Shielding > --- WEAPON (4) ------- Advanced KE Penetrator > --- INVENTORY (15) --- Micro Fission Core High-capacity Storage Unit Improved Transmission Jammer Advanced Shield Generator Peak State ------------ > --- POWER ------------ Light Angular Momentum Engine Neutrino Core > --- PROPULSION ------- Improved Medium Treads Centrium Heavy Treads > --- UTILITY ---------- Advanced Heat Sink High-capacity Storage Unit Advanced Visual Processing Unit Experimental Targeting Computer Target Analyzer Centrium Medium Armor Plating > --- WEAPON ----------- Cooled Pulse Rifle Cooled Plasma Cannon Advanced KE Penetrator Advanced KE Penetrator > --- INVENTORY -------- Light Angular Momentum Engine Improved Medium Treads Improved Medium Treads Improved Medium Treads Improved Energy Well Large Matter Pod Trap Scanner Improved Hacking Suite Improved System Shield Relay Coupler [Heavy] Improved Field Recycling Unit Thief Drone Bay Advanced Variable Charge Gun Rocket Launcher Scatter Rocket Array Scatter Rocket Array Advanced Datajack Remote Datajack Katana [Rating: 97] Favorites ----------- Power Cooled Ion Engine Engine Cooled Ion Engine Power Core Fission Core Propulsion Light Treads Treads Light Treads Leg Aluminum Leg Wheel Compact Wheel Flight Unit VTOL Module Utility High-capacity Storage Unit Device Advanced Shield Generator Storage High-capacity Storage Unit Processor Experimental Targeting Computer Hackware System Shield Protection Centrium Medium Armor Plating Weapon Gauss Rifle Energy Gun EM Pulse Gun Energy Cannon Cooled Plasma Cannon Ballistic Gun Gauss Rifle Ballistic Cannon Mini Assault Cannon Launcher Rocket Launcher Special Weapon Remote Datajack Impact Weapon Heavy Hammer Slashing Weapon Katana Special Melee Weapon Advanced Datajack Build | -11 -10 -10 -10 -9 -8 -8 -8 -8 -8 -8 -6 -6 -6 -6 -6 -6 -6 -5 -4 ------- Run | Yrd Mat Min Exi Min Mat Gar Mat Sto Gar Rec Fac Gar Fac Ext Cet Arc Hub Fac Fac Slots Evolved 12 | . . . . . 4 . . . . . 4 . . . . . . 2 2 Power 1 | . . . . . . . . . . . 1 . . . . . . . . Propulsion 2 | . . . . . 1 . . . . . . . . . . . . . 1 Utility 7 | . . . . . 1 . . . . . 3 . . . . . . 2 1 Weapon 2 | . . . . . 2 . . . . . . . . . . . . . . Parts Attached 428 | 7 16 7 1 5 3 9 56 23 49 5 16 46 18 47 18 9 28 53 12 Power 43 | 1 1 . . . . . 3 2 . . 6 4 1 6 2 5 5 7 . Engine 21 | 1 1 . . . . . 1 2 . . 3 2 . . 1 2 4 4 . Core 22 | . . . . . . . 2 . . . 3 2 1 6 1 3 1 3 . Reactor . | . . . . . . . . . . . . . . . . . . . . Propulsion 66 | 2 4 . . . 1 2 14 5 6 1 2 9 1 2 2 . 5 8 2 Treads 49 | 2 . . . . . 2 9 5 6 1 2 9 1 2 2 . 5 3 . Leg 1 | . . . . . . . 1 . . . . . . . . . . . . Wheel 11 | . 4 . . . 1 . 4 . . . . . . . . . . . 2 Hover . | . . . . . . . . . . . . . . . . . . . . Flight 5 | . . . . . . . . . . . . . . . . . . 5 . Utility 90 | 2 2 1 1 . 1 1 8 3 8 2 4 15 10 7 2 . 4 13 6 Device 47 | 1 . 1 . . . . 4 3 6 . 1 11 6 2 1 . 2 8 1 Storage 9 | 1 1 . 1 . . . . . 1 . . 2 . 1 . . . 1 1 Processor 14 | . 1 . . . 1 . 1 . . 1 2 2 1 1 . . 1 2 1 Hackware 13 | . . . . . . 1 3 . 1 1 . . 3 1 . . 1 2 . Protection 7 | . . . . . . . . . . . 1 . . 2 1 . . . 3 Artifact . | . . . . . . . . . . . . . . . . . . . . Weapon 229 | 2 9 6 . 5 1 6 31 13 35 2 4 18 6 32 12 4 14 25 4 Energy Gun 40 | 1 3 3 . 3 1 . 6 1 2 . . 1 . 5 5 . 2 7 . Energy Cannon 10 | . . . . . . . 1 . . . . . 2 6 1 . . . . Ballistic Gun 50 | 1 4 . . . . 2 4 6 8 . . 3 . 7 4 3 3 4 1 Ballistic Cannon 35 | . . . . . . . 6 4 5 1 3 7 . 5 1 . 1 2 . Launcher 30 | . . 2 . 1 . 1 4 . 8 . . 3 1 1 1 . 5 3 . Special Weapon 15 | . . . . . . . . . 1 1 1 . 2 5 . . 3 2 . Impact Weapon 7 | . 1 1 . . . 1 4 . . . . . . . . . . . . Slashing Weapon 32 | . 1 . . . . . 4 2 8 . . 4 1 3 . 1 . 5 3 Piercing Weapon . | . . . . . . . . . . . . . . . . . . . . Special Melee Weapon 10 | . . . . 1 . 2 2 . 3 . . . . . . . . 2 . Unidentified Prototypes 16 | . . 1 . . . . 2 2 . . 1 . 2 2 4 . 2 . . Parts Lost 82 | . 3 . . 2 . 3 8 1 1 . 1 9 1 3 7 . 13 27 3 Power 13 | . . . . . . . 1 1 . . . 1 . 1 2 . 4 3 . Propulsion 23 | . 2 . . . . 1 5 . . . . 3 . . 1 . 2 8 1 Utility 19 | . . . . . . . . . 1 . . 2 . 2 1 . 2 10 1 Weapon 27 | . 1 . . 2 . 2 2 . . . 1 3 1 . 3 . 5 6 1 Highest Loss Streak 8 | . 2 . . 2 . 2 6 1 1 . 1 6 1 1 5 . 8 7 2 To Critical Strikes 2 | . . . . . . . . . . . . . . . 2 . . . . Average Slot Usage (%) 93 | . 95 100 100 100 76 94 98 99 99 100 99 97 92 91 91 91 86 79 36 Engine 6 | . 14 14 14 14 9 9 . 9 9 9 6 6 6 1 5 2 4 5 . Core 3 | . . . . . . . 7 . . . 6 5 6 11 6 7 5 2 . Treads 17 | . 13 . . . . 14 23 26 27 27 20 17 13 13 12 13 13 11 . Wheel 3 | . 10 28 28 28 27 12 3 . . . . . . . . . . . 4 Device 10 | . 9 8 14 14 9 9 7 9 14 12 6 16 7 5 6 6 7 17 3 Storage 7 | . 14 14 14 14 9 9 9 9 9 9 6 6 6 6 6 6 6 3 1 Processor 8 | . 4 5 . . 4 2 . . . 2 12 14 13 18 20 20 18 11 14 Hackware 3 | . . . . . . 6 9 9 2 2 6 . 10 3 . . . 4 . Protection 1 | . . . . . . . . . . . 6 . . 4 4 6 4 . 7 Energy Gun 5 | . 7 26 28 23 13 5 4 4 7 . . 2 . 4 8 6 5 8 . Energy Cannon 2 | . . . . . . . 5 . . . . . 2 16 7 6 4 . . Ballistic Gun 11 | . 19 . . . . 10 16 18 17 27 16 6 11 2 8 12 6 . . Ballistic Cannon 3 | . . . . . . . 4 11 3 1 8 12 4 . . . . . . Slashing Weapon 1 | . . . . . . . 2 1 4 4 . 1 2 . . . . 3 2 Peak Build Rating 97 | 7 10 16 15 16 18 24 39 36 44 43 61 73 79 84 95 96 97 90 37 Average Rating 48 | 4 7 13 15 15 17 22 29 33 37 40 59 64 73 79 90 92 86 65 24 On Entrance 38 | . 7 9 15 15 16 18 24 30 34 40 39 61 71 75 83 85 96 46 9 Naked Turns . | . . . . . . . . . . . . . . . . . . . . Heaviest Build 100 | 13 90 94 93 54 53 58 65 66 78 76 93 100 86 93 99 100 100 97 31 Greatest Support 110 | 40 40 26 26 26 42 42 63 60 60 60 60 95 105 105 110 110 110 90 26 Greatest Overweight (x) 5 | 3 5 3 3 2 1 1 3 1 1 1 1 1 . . 3 . 2 1 2 Average Overweight (x) . | . 2 3 2 1 1 1 . . . 1 1 . . . . . . . . Largest Inventory Capacity 25 | 8 25 25 25 20 20 20 20 20 20 20 20 20 20 20 20 20 20 20 15 Average Capacity 19 | 7 21 25 20 20 20 20 20 20 20 20 20 20 20 20 20 20 20 15 8 Most Carried 25 | 1 25 25 24 20 19 20 20 20 20 20 20 20 20 20 17 18 20 17 5 Average Carried 17 | . 11 24 20 19 18 18 19 19 18 19 17 18 18 18 14 16 17 9 4 Final Capacity 25 | 8 25 25 20 20 20 20 20 20 20 20 20 20 20 20 20 20 20 5 15 Final Carried 24 | 1 23 24 20 20 18 20 16 20 19 20 20 20 20 17 14 17 14 5 4 Class Distribution -------------------- 37% | Scavenger-Gunner 18% | Scavenger-Tank 16% | Mutant 11% | Bothacker-Gunner 3% | Commander-Tank Dominant Class ---------------- Mutant | -10/Materials Mutant | -10/Mines Mutant | -10/Exiles Mutant | -9/Mines Mutant | -8/Materials Bothacker-Gunner | -8/Garrison Scavenger-Gunner | -8/Materials Scavenger-Gunner | -8/Storage Scavenger-Tank | -8/Garrison Scavenger-Tank | -8/Recycling Commander-Tank | -6/Factory Scavenger-Gunner | -6/Garrison Bothacker-Gunner | -6/Factory Scavenger-Gunner | -6/Extension Scavenger-Gunner | -6/Cetus Scavenger-Gunner | -6/Archives Scavenger-Gunner | -6/Hub_04(d) Scavenger-Mutant | -5/Factory Assassin | -4/Factory Resources | -11 -10 -10 -10 -9 -8 -8 -8 -8 -8 -8 -6 -6 -6 -6 -6 -6 -6 -5 -4 ----------- Run | Yrd Mat Min Exi Min Mat Gar Mat Sto Gar Rec Fac Gar Fac Ext Cet Arc Hub Fac Fac Matter Collected 10414 | 239 460 31 22 150 . 123 954 1291 1183 629 443 1794 442 766 259 250 729 602 47 Remotely . | . . . . . . . . . . . . . . . . . . . . Salvage Created 13853 | 16 947 15 . . . 77 1094 1403 1380 1235 441 1409 463 2015 476 432 1935 486 29 Parts 603 | 4 50 5 . . . 5 78 58 74 34 21 61 21 57 9 23 85 16 2 Haulers Intercepted 20 | . 1 . . . . . 4 6 . . . . 1 6 . . 1 1 . Recyclers Shooed 14 | . 2 . . . . . 2 5 . 4 . . . 1 . . . . . Parts Field Recycled 17 | . . . . . . . . . . . . . . . . . . 17 . Retrieved Matter 238 | . . . . . . . . . . . . . . . . . . 238 . Parts Self-Destructed . | . . . . . . . . . . . . . . . . . . . . Prevented . | . . . . . . . . . . . . . . . . . . . . Kills | -11 -10 -10 -10 -9 -8 -8 -8 -8 -8 -8 -6 -6 -6 -6 -6 -6 -6 -5 -4 ------- Run | Yrd Mat Min Exi Min Mat Gar Mat Sto Gar Rec Fac Gar Fac Ext Cet Arc Hub Fac Fac Combat Hostiles Destroyed 215 | . 11 6 . . . 4 19 15 29 4 8 42 2 17 6 4 31 17 . Melee 8 | . . . . . . 1 . . . 1 . 2 . . . . . 4 . Guns 78 | . 11 . . . . . 9 7 14 3 2 9 . 6 2 4 7 4 . Cannons 59 | . . . . . . . 6 8 3 . 6 14 2 8 3 . 9 . . AOE 65 | . . 6 . . . 3 4 . 12 . . 17 . 1 . . 13 9 . Classes Destroyed 22 | 1 6 1 . . . . 5 . 1 . 1 3 . . 1 1 1 1 . Worker 14 | . 4 . . . . . 1 1 . 1 . . . . . . 4 2 1 Builder 17 | . 1 . . . . . 5 1 . . . . . 1 . . 9 . . Tunneler 3 | 1 . . . . . . . . . . . . . . . . 2 . . Hauler 20 | . 1 . . . . . 4 6 . . . . 1 6 . . 1 1 . Recycler 29 | . 4 . . . . . 3 6 . 9 . . 2 2 . . 2 1 . Carrier 1 | . . . . . . . . . . . . . . . 1 . . . . Mechanic 2 | . . . . . . . . . . . . . . . . . 2 . . Operator 4 | . . . . . . . . . . . . . . . . 3 1 . . Watcher 11 | . 2 . . . . . 3 . 1 . . . . 2 1 . 1 1 . Swarmer 49 | . . 6 . . . 3 6 . 13 . . 17 . . . . . 4 . Saboteur 7 | . . . . . . . . . . . . 4 . . . . 1 2 . Grunt 87 | . 11 . . . . 1 8 9 11 1 4 8 . 11 . . 23 . . Brawler 5 | . . . . . . . 1 . . . 1 2 . . . . 1 . . Duelist 3 | . . . . . . . 1 . . . . . . . . . 2 . . Sentry 30 | . . . . . . . 2 5 3 3 2 6 . 2 . 4 2 1 . Demolisher 3 | . . . . . . . . . . . 1 . . . . . . 2 . Specialist 4 | . . . . . . . . . . . . 4 . . . . . . . Hunter 7 | . . . . . . . 1 1 . . . . 1 2 2 . . . . Programmer 5 | . . . . . . . . . 2 . . . 1 1 . . 1 . . Heavy 2 | . . . . . . . 1 . . . . . . . . . 1 . . Behemoth 3 | . . . . . . . . . . . . 1 . 2 . . . . . Cetus Guard 4 | . . . . . . . . . . . . . . . 4 . . . . Assembled 10 | . . . . . . . . . . . . . . . . . . 10 . Best Kill Streak 14 | 1 4 3 . . . 3 7 6 7 6 5 9 2 3 3 5 14 11 1 Combat Bots Only 9 | . 4 3 . . . 3 3 2 7 1 5 9 2 3 2 3 8 9 . Max Kills in Single Turn 6 | 1 1 2 . . . 3 3 2 3 1 2 4 1 1 1 1 6 4 1 Gunslinging . | . . . . . . . . . . . . . . . . . . . . Exploded 4 | . . 2 . . . 3 2 . 3 . . 4 . 1 . . 3 4 . Melee 1 | . . . . . . 1 . . . 1 . 1 . . . . . 1 . Uniques/NPCs Destroyed . | . . . . . . . . . . . . . . . . . . . . Combat | -11 -10 -10 -10 -9 -8 -8 -8 -8 -8 -8 -6 -6 -6 -6 -6 -6 -6 -5 -4 -------- Run | Yrd Mat Min Exi Min Mat Gar Mat Sto Gar Rec Fac Gar Fac Ext Cet Arc Hub Fac Fac Hostile Shots Fired 1389 | . 70 10 . 3 . 19 136 32 106 6 23 222 26 75 108 6 282 219 46 Missed 452 | . 23 2 . 1 . 1 47 8 30 4 1 75 4 24 41 2 95 77 17 Damage Taken 16502 | . 672 113 . 124 . 296 1595 374 1027 21 132 1950 455 1052 1665 88 2984 3377 577 Core 2456 | . 157 . . . . 60 128 49 179 . 3 152 21 75 99 . 400 958 175 Absorbed by Shields 1290 | . . . . . . . . . 252 8 59 603 127 35 . . . 206 . Redirected to Shielding 19 | . . . . . . . . . . . . . . . . . . . 19 Regen/Repaired (Parts) 180 | . . . . . . . . 180 . . . . . . . . . . . Core Remaining (%) 35 | 100 . . . 37 . . . . . 24 . . . . . . 11 4 . Volleys Fired 705 | 2 109 5 . 6 . 3 64 46 64 40 14 76 28 89 67 20 53 17 2 Largest 4 | 2 2 1 . 2 . 1 4 4 4 4 4 4 3 4 4 4 4 3 1 Hottest 375 | 60 70 33 . 80 . 40 204 160 198 150 170 226 111 375 210 125 140 220 35 Shots Fired 1840 | 4 198 5 . 12 . 3 197 175 176 93 52 240 54 227 173 53 143 33 2 Gun 1099 | 4 198 . . 11 . 2 122 112 128 69 30 97 24 57 92 44 84 23 2 Cannon 618 | . . . . . . . 70 63 33 7 21 128 15 140 81 9 46 5 . Launcher 50 | . . 5 . 1 . 1 5 . 8 . . 15 . 1 . . 10 4 . Special 73 | . . . . . . . . . 7 17 1 . 15 29 . . 3 1 . Kinetic 1086 | 2 147 . . . . . 137 161 124 76 51 197 35 30 21 36 58 9 2 Thermal 610 | 2 51 . . . . . 53 14 37 . . 28 4 167 152 17 72 13 . Explosive 50 | . . 5 . 1 . 1 5 . 8 . . 15 . 1 . . 10 4 . Electromagnetic 21 | . . . . 11 . 2 2 . . . . . . . . . . 6 . Robot Hit Streak 28 | 2 19 1 . 2 . 1 11 9 16 14 9 22 14 28 18 26 20 4 . Robot Miss Streak 20 | 1 4 1 . 2 . 1 6 4 7 2 5 6 1 2 3 2 20 6 1 Penetration Max 1 | . . . . . . . 1 1 . . . 1 . 1 1 1 1 . . Secondary Targets 2 | . 1 . . . . . . . 1 . . . . . . . . . . Max Gunslinging Chain 1 | . 1 . . . . . . . 1 . . . . . . . . . . Shots Hit Robots 1219 | 3 128 1 . 7 . 7 112 100 129 61 29 167 43 168 76 45 97 45 1 Core Hits 643 | 1 51 7 . 4 . 4 59 41 57 19 14 82 10 56 24 10 153 49 2 Critical Kills 22 | . . . . . . . . 1 2 1 2 2 . 1 2 7 4 . . Critical Parts Destroyed 37 | . . . . . . 1 . 1 4 4 3 7 . . 1 9 7 . . Critical Strikes 112 | . 3 . . . . 1 3 5 12 5 5 16 1 10 6 21 18 6 . Burn 26 | . 3 . . . . . 3 1 2 . . . . 7 3 2 5 . . Meltdown 4 | . . . . . . . . . . . . . . 1 2 . 1 . . Destroy 59 | . . . . . . . . 2 6 5 5 11 . . 1 19 10 . . Blast 9 | . . . . . . . . 2 1 . . 2 1 1 . . 2 . . Smash 1 | . . . . . . 1 . . . . . . . . . . . . . Sever 13 | . . . . . . . . . 3 . . 3 . 1 . . . 6 . Melee Attacks 243 | . 3 2 . 1 . 11 39 7 67 5 . 32 5 12 . 1 . 53 5 Impact 23 | . 2 2 . . . 9 10 . . . . . . . . . . . . Slashing 206 | . 1 . . . . . 26 7 61 5 . 32 5 12 . 1 . 51 5 Piercing . | . . . . . . . . . . . . . . . . . . . . Sneak Attacks 15 | . 1 . . 1 . . 2 . 4 1 . . . . . . . 5 1 Combat Hostiles 1 | . . . . . . . . . . 1 . . . . . . . . . Follow-up Attacks 2 | . . . . . . . . . . . . . . . . . . 2 . Damage Inflicted 36565 | 31 1415 384 . 122 . 304 2888 2131 4137 1057 654 5726 792 4653 2000 1191 6289 2717 74 Guns 13219 | 31 1312 . . 78 . 12 1111 1328 1482 935 339 1408 440 916 963 966 1576 322 . Cannons 11295 | . . . . . . . 1095 803 504 28 315 2095 352 3452 1037 225 1272 117 . Explosions 8255 | . . 384 . 44 . 145 558 . 762 . . 1336 . 215 . . 3437 1374 . Melee 3789 | . 103 . . . . 147 122 . 1389 94 . 887 . 70 . . . 904 73 Ramming 7 | . . . . . . . 2 . . . . . . . . . 4 . 1 Kinetic 14718 | 9 862 . . . . . 1640 1912 1541 963 654 3214 691 405 480 889 1316 142 . Thermal 9984 | 22 450 . . . . . 549 219 445 . . 289 101 4046 1520 302 1532 509 . Explosive 7917 | . . 384 . 44 . 145 558 . 762 . . 1336 . 132 . . 3437 1119 . Electromagnetic 150 | . . . . 78 . 12 17 . . . . . . . . . . 43 . Impact 250 | . 103 . . . . 147 . . . . . . . . . . . . . Slashing 3539 | . . . . . . . 122 . 1389 94 . 887 . 70 . . . 904 73 Piercing . | . . . . . . . . . . . . . . . . . . . . Highest Corruption 12 | . . . . . . . . . . . . . 1 1 1 1 2 12 . Average Corruption 1 | . . . . . . . . . . . . . 1 1 1 1 1 5 . Corruption Purged 1 | . . . . . . . . . . . . . 1 . . . . . . Corruption Blocked . | . . . . . . . . . . . . . . . . . . . . Effects 42 | . . . . . . . . . . . . . 6 16 7 3 5 5 . Message Errors 11 | . . . . . . . . . . . . . 1 5 1 1 3 . . Matter Fused 7 | . . . . . . . . . . . . . 2 2 1 1 . 1 . Heat Flow Errors 5 | . . . . . . . . . . . . . 1 2 2 . . . . Energy Discharges 9 | . . . . . . . . . . . . . 1 5 2 . . 1 . Parts Fused 2 | . . . . . . . . . . . . . 1 . . . . 1 . Data Loss (minor) 4 | . . . . . . . . . . . . . . 1 . 1 . 2 . Misfires 4 | . . . . . . . . . . . . . . 1 1 . 2 . . Overload Shots 4 | . . . . . . . . . . . . . . 4 . . . . . Effects 1 | . . . . . . . . . . . . . . 1 . . . . . Energy Bleed 1 | . . . . . . . . . . . . . . 1 . . . . . Overflow Damage 1174 | . 81 5 . 4 . 56 62 23 102 8 . 203 . 138 14 . 104 374 . Projectiles 187 | . . . . . . . . 23 . 8 . 30 . 74 14 . 38 . . Explosions 607 | . . 5 . 4 . 5 62 . 56 . . 44 . 64 . . 66 301 . Melee 380 | . 81 . . . . 51 . . 46 . . 129 . . . . . 73 . Knockbacks 32 | . . . . . . 1 3 3 1 . . 20 4 . . . . . . Impact 1 | . . . . . . 1 . . . . . . . . . . . . . Kinetic 27 | . . . . . . . 2 3 1 . . 18 3 . . . . . . Secondary 4 | . . . . . . . 1 . . . . 2 1 . . . . . . Self-Inflicted Damage 973 | . . 43 . . . 26 46 . 65 . . 141 . 115 . . 231 306 . Shots 27 | . . 2 . . . 1 2 . 2 . . 4 . 2 . . 10 4 . Rammed 2 | . . . . . . . . . . . . . . . . . 1 . 1 Targets Rammed 3 | . . . . . . . 1 . . . . . . . . . 1 . 1 Kicked . | . . . . . . . . . . . . . . . . . . . . Crushed 1 | . . . . . . . 1 . . . . . . . . . . . . Highest Temperature 534 | 20 252 . . 90 . 3 366 474 182 340 526 534 235 338 276 4 68 108 . Average Temperature 90 | 12 56 . . 40 . 3 126 100 35 69 229 135 60 82 62 4 25 41 . Received Heat Transfer 3584 | . 339 . . . . 180 252 189 357 6 30 371 101 381 90 36 876 274 102 Effects 27 | . . . . . . . 5 3 . . 7 8 . 3 1 . . . . Shutdowns 8 | . . . . . . . . 1 . . 2 5 . . . . . . . Energy Bleed 4 | . . . . . . . 1 . . . . 2 . . 1 . . . . Interference 6 | . . . . . . . 3 . . . . . . 3 . . . . . Matter Decay 4 | . . . . . . . . 1 . . 2 1 . . . . . . . Short Circuit 1 | . . . . . . . . . . . 1 . . . . . . . . Damage (minor) 3 | . . . . . . . 1 1 . . 1 . . . . . . . . Damage (major) 1 | . . . . . . . . . . . 1 . . . . . . . . Siege Activations . | . . . . . . . . . . . . . . . . . . . . Robots Corrupted . | . . . . . . . . . . . . . . . . . . . . Combat Hostiles . | . . . . . . . . . . . . . . . . . . . . Parts Fried 1 | . . . . . . 1 . . . . . . . . . . . . . Impact Corruptions 3 | . 1 . . . . 2 . . . . . . . . . . . . . Robots Melted 7 | . . . . . . . . . . . . . . 3 2 . 2 . . Combat Hostiles 5 | . . . . . . . . . . . . . . 2 1 . 2 . . Parts Melted 48 | . 5 . . . . . 1 1 2 . . 1 1 17 9 . 11 . . Heat Transferred 18946 | 50 1554 . . . . . 1406 555 1071 . . 555 150 6731 2704 646 3004 520 . Parts Sabotaged 2 | . . . . . . . . . . . . 2 . . . . . . . Parts Stolen . | . . . . . . . . . . . . . . . . . . . . Parts Stripped . | . . . . . . . . . . . . . . . . . . . . Power Chain Reactions . | . . . . . . . . . . . . . . . . . . . . Alert | -11 -10 -10 -10 -9 -8 -8 -8 -8 -8 -8 -6 -6 -6 -6 -6 -6 -6 -5 -4 ------- Run | Yrd Mat Min Exi Min Mat Gar Mat Sto Gar Rec Fac Gar Fac Ext Cet Arc Hub Fac Fac Peak Influence 2240 | 5 125 192 . 9 . 184 301 344 1762 797 415 2240 1494 958 562 240 1046 858 508 Initial 1176 | . 3 . . . . . 89 28 153 792 211 290 1176 731 532 125 14 419 410 Average 579 | 1 40 96 . 2 . 115 76 167 846 588 276 1222 1286 846 454 163 536 521 423 Maximum Alert Level 5 | . . . . . . . 1 1 5 3 2 5 4 3 2 1 3 3 2 Low Security (%) 28 | 100 100 100 . 100 100 100 91 55 1 . . . . . . 46 17 . . Level 1 11 | . . . . . . . 8 44 13 . 89 1 . . 54 53 5 9 18 Level 2 23 | . . . . . . . . . 28 78 10 14 . . 45 . 51 80 81 Level 3 19 | . . . . . . . . . 30 21 . 19 . 100 . . 25 9 . Level 4 12 | . . . . . . . . . 17 . . 40 100 . . . . . . Level 5 3 | . . . . . . . . . 7 . . 23 . . . . . . . High Security . | . . . . . . . . . . . . . . . . . . . . Max Security . | . . . . . . . . . . . . . . . . . . . . Squads Dispatched 42 | . 2 . . . . . 4 1 . . 3 . 7 2 . . 12 8 3 Investigation 4 | . 1 . . . . . 1 . . . . . 1 . . . . 1 . Extermination 4 | . . . . . . . . . . . . . 1 . . . 1 1 1 Reinforcement 21 | . 1 . . . . . 3 1 . . 1 . 1 2 . . 6 4 2 Assault 4 | . . . . . . . . . . . . . 1 . . . 3 . . Garrison 9 | . . . . . . . . . . . 2 . 3 . . . 2 2 . Intercept . | . . . . . . . . . . . . . . . . . . . . Searches Triggered . | . . . . . . . . . . . . . . . . . . . . Construction Impeded 3 | . . . . . . . . 1 . . . . . . . . 2 . . Haulers Reinforced 3 | . . . . . . . . . . . . . 1 . . . 1 1 . Active Scanning Responses . | . . . . . . . . . . . . . . . . . . . . Cargo Convoy Interrupts 1 | . . . . . . . . . . . . . . . . . . 1 . Stealth | -11 -10 -10 -10 -9 -8 -8 -8 -8 -8 -8 -6 -6 -6 -6 -6 -6 -6 -5 -4 --------- Run | Yrd Mat Min Exi Min Mat Gar Mat Sto Gar Rec Fac Gar Fac Ext Cet Arc Hub Fac Fac Distress Signals 17 | . 3 . . . . . 4 . 1 . . 1 . . 2 1 2 3 . Communications Jammed 6 | . . . . . . . . . . . . . . . . . 2 4 . Distress Signals 5 | . . . . . . . . . . . . . . . . . 1 4 . Times Spotted 404 | . 22 6 . 5 . 8 34 18 43 5 6 48 23 38 12 6 50 67 13 Peak Tracking Total 14 | . 4 3 . 4 . 3 4 3 5 2 2 8 5 6 5 2 7 14 8 Tactical Retreats 37 | . . . . . . 1 2 1 8 . . 3 . 2 . . 2 10 8 Traps | -11 -10 -10 -10 -9 -8 -8 -8 -8 -8 -8 -6 -6 -6 -6 -6 -6 -6 -5 -4 ------- Run | Yrd Mat Min Exi Min Mat Gar Mat Sto Gar Rec Fac Gar Fac Ext Cet Arc Hub Fac Fac Traps Triggered 14 | . 1 . . . . . 1 . 4 . . 2 1 . . . . 4 1 Indirectly . | . . . . . . . . . . . . . . . . . . . . Trap Hack Attempts . | . . . . . . . . . . . . . . . . . . . . Triggered . | . . . . . . . . . . . . . . . . . . . . Disarmed . | . . . . . . . . . . . . . . . . . . . . Reprogrammed . | . . . . . . . . . . . . . . . . . . . . Reused . | . . . . . . . . . . . . . . . . . . . . Traps Extracted . | . . . . . . . . . . . . . . . . . . . . Installed . | . . . . . . . . . . . . . . . . . . . . Triggered 1 | . . . . . . . . . . . . . . . . . . 1 . Machines | -11 -10 -10 -10 -9 -8 -8 -8 -8 -8 -8 -6 -6 -6 -6 -6 -6 -6 -5 -4 ---------- Run | Yrd Mat Min Exi Min Mat Gar Mat Sto Gar Rec Fac Gar Fac Ext Cet Arc Hub Fac Fac Machines Disabled 53 | . 1 1 . . . 1 . 2 7 2 3 7 2 5 2 1 9 10 . Max in Single Turn 4 | . 1 1 . . . 1 . 1 2 1 1 2 1 1 1 1 1 4 . Garrison Relay 7 | . . . . . . 1 . . 2 . . 4 . . . . . . . Phase Generator 1 | . . . . . . . . . . . . 1 . . . . . . . Energy Cycler 2 | . . . . . . . . . . . . . . 2 . . . . . Machines Repaired . | . . . . . . . . . . . . . . . . . . . . Machines Dismantled . | . . . . . . . . . . . . . . . . . . . . Machines Sabotaged . | . . . . . . . . . . . . . . . . . . . . Overloaded Fab Kills . | . . . . . . . . . . . . . . . . . . . . Hacking | -11 -10 -10 -10 -9 -8 -8 -8 -8 -8 -8 -6 -6 -6 -6 -6 -6 -6 -5 -4 --------- Run | Yrd Mat Min Exi Min Mat Gar Mat Sto Gar Rec Fac Gar Fac Ext Cet Arc Hub Fac Fac Machines Accessed 79 | . 6 . 4 . 1 . 8 7 2 13 1 4 5 13 3 1 3 4 4 Terminals 54 | . 5 . . . . . 7 4 2 6 . 4 4 12 3 . 3 1 3 Fabricators 3 | . . . . . . . . . . . . . 1 . . . . 1 1 Repair Stations 2 | . . . . . . . . 2 . . . . . . . . . . . Recycling Units 12 | . 1 . . . . . 1 . . 7 . . . 1 . . . 2 . Scanalyzers . | . . . . . . . . . . . . . . . . . . . . Garrison Access 3 | . . . . . 1 . . 1 . . 1 . . . . . . . . Total Hacks 178 | . 11 . 4 . 1 . 30 18 2 25 1 6 11 38 6 2 6 10 7 Successful 89 | . 5 . 4 . 1 . 16 10 2 17 1 1 5 14 3 2 3 3 2 Failed 89 | . 6 . . . . . 14 8 . 8 . 5 6 24 3 . 3 7 5 Catastrophic 13 | . . . . . . . . 1 . 1 . 4 1 1 2 . . 3 . Database Lockouts . | . . . . . . . . . . . . . . . . . . . . Manual 85 | . 5 . . . . . 17 9 . 14 . 4 8 16 1 . 6 1 4 Terminals 138 | . 10 . . . . . 28 12 2 16 . 6 9 37 6 . 6 1 5 Fabricators 8 | . . . . . . . . . . . . . 2 . . . . 4 2 Repair Stations 5 | . . . . . . . . 5 . . . . . . . . . . . Recycling Units 18 | . 1 . . . . . 2 . . 9 . . . 1 . . . 5 . Scanalyzers . | . . . . . . . . . . . . . . . . . . . . Garrison Access 3 | . . . . . 1 . . 1 . . 1 . . . . . . . . Terminal Hacks 41 | . 2 . 4 . . . 10 2 2 5 . 1 1 8 3 2 . . 1 Record 8 | . . . 4 . . . . . . . . . . . 2 2 . . . Robot Analysis 1 | . . . . . . . . . . 1 . . . . . . . . . Prototype ID Bank 1 | . . . . . . . 1 . . . . . . . . . . . . Open Door 7 | . . . . . . . . 1 . . . . 1 4 1 . . . . Open DSF 1 | . . . . . . . . . . . . . . . . . . . 1 Level Access Points 1 | . . . . . . . . . . 1 . . . . . . . . . Branch Access Points 2 | . . . . . . . . 1 . 1 . . . . . . . . . Emergency Access Points 1 | . . . . . . . . . 1 . . . . . . . . . . Terminal Index 3 | . . . . . . . 1 . . 1 . . . 1 . . . . . Unreport Threat 3 | . . . . . . . 2 . . . . . . 1 . . . . . Locate Traps 2 | . . . . . . . 2 . . . . . . . . . . . . Dispatch Records 1 | . . . . . . . . . . 1 . . . . . . . . . Maintenance Status 1 | . . . . . . . 1 . . . . . . . . . . . . Transport Status 2 | . 1 . . . . . 1 . . . . . . . . . . . . Hauler Manifests 2 | . 1 . . . . . 1 . . . . . . . . . . . . Zone Layout 3 | . . . . . . . 1 . . . . . . 2 . . . . . Garrison Registry 1 | . . . . . . . . . 1 . . . . . . . . . . Patrol Navigation 1 | . . . . . . . . . . . . 1 . . . . . . . Fabricator Hacks 3 | . . . . . . . . . . . . . 1 . . . . 1 1 Network Status 1 | . . . . . . . . . . . . . . . . . . . 1 Build 2 | . . . . . . . . . . . . . 1 . . . . 1 . Repair Station Hacks 4 | . . . . . . . . 4 . . . . . . . . . . . Scan Component 2 | . . . . . . . . 2 . . . . . . . . . . . Repair 2 | . . . . . . . . 2 . . . . . . . . . . . Recycling Unit Hacks 12 | . 1 . . . . . . . . 8 . . . 1 . . . 2 . Report Inventory 10 | . 1 . . . . . . . . 7 . . . 1 . . . 1 . Retrieve Components 2 | . . . . . . . . . . 1 . . . . . . . 1 . Scanalyzer . | . . . . . . . . . . . . . . . . . . . . Garrison Access Hacks 3 | . . . . . 1 . . 1 . . 1 . . . . . . . . Unlock Access 3 | . . . . . 1 . . 1 . . 1 . . . . . . . . Unauthorized Hacks 26 | . 2 . . . . . 6 3 . 4 . . 3 5 . . 3 . . Terminals 26 | . 2 . . . . . 6 3 . 4 . . 3 5 . . 3 . . Assimilate 1 | . 1 . . . . . . . . . . . . . . . . . . Botnet 25 | . 1 . . . . . 6 3 . 4 . . 3 5 . . 3 . . Fabricators . | . . . . . . . . . . . . . . . . . . . . Repair Stations . | . . . . . . . . . . . . . . . . . . . . Recycling Units . | . . . . . . . . . . . . . . . . . . . . Scanalyzers . | . . . . . . . . . . . . . . . . . . . . Garrison Access . | . . . . . . . . . . . . . . . . . . . . Data Cores Recovered . | . . . . . . . . . . . . . . . . . . . . Used . | . . . . . . . . . . . . . . . . . . . . Hacking Detections 46 | . 2 . . . 1 . 4 2 1 7 . 4 4 11 2 . 3 3 2 Full Trace Events 2 | . . . . . . . 1 . . . . . 1 . . . . . . Feedback Events . | . . . . . . . . . . . . . . . . . . . . Feedback Blocked . | . . . . . . . . . . . . . . . . . . . . Robot Schematics Acquired . | . . . . . . . . . . . . . . . . . . . . Robots Built 2 | . . . . . . . . . . . . . . . . . . 2 . Authchips . | . . . . . . . . . . . . . . . . . . . . Time 76 | . . . . . . . . . . . . . . . . . . 76 . Total Robot Build Rating 10 | . . . . . . . . . . . . . . . . . . 10 . Part Schematics Acquired . | . . . . . . . . . . . . . . . . . . . . Parts Built . | . . . . . . . . . . . . . . . . . . . . Authchips . | . . . . . . . . . . . . . . . . . . . . Time 53 | . . . . . . . . . . . . . 53 . . . . . . Total Part Build Rating . | . . . . . . . . . . . . . . . . . . . . Parts Repaired 2 | . . . . . . . . 2 . . . . . . . . . . . Time 70 | . . . . . . . . 70 . . . . . . . . . . . Parts Recycled . | . . . . . . . . . . . . . . . . . . . . Recycled Matter . | . . . . . . . . . . . . . . . . . . . . Retrieved Matter . | . . . . . . . . . . . . . . . . . . . . Retrieved Components 4 | . . . . . . . . . . 3 . . . . . . . 1 . Parts Scanalyzed . | . . . . . . . . . . . . . . . . . . . . Part Schematics Acquired . | . . . . . . . . . . . . . . . . . . . . Parts Damaged . | . . . . . . . . . . . . . . . . . . . . Bothacking | -11 -10 -10 -10 -9 -8 -8 -8 -8 -8 -8 -6 -6 -6 -6 -6 -6 -6 -5 -4 ------------ Run | Yrd Mat Min Exi Min Mat Gar Mat Sto Gar Rec Fac Gar Fac Ext Cet Arc Hub Fac Fac Used RIF Installer 3 | . . . . . . 1 . . 1 . . 1 . . . . . . . Command Fork 1 | . . . . . . . . . 1 . . . . . . . . . . Watcher Feeds 1 | . . . . . . . . . . . . 1 . . . . . . . Robots Hacked 44 | . . . . . . 2 2 . 2 1 1 . 12 18 . . 3 3 . Non-combat 31 | . . . . . . . . . . 1 1 . 8 16 . . 2 3 . Combat 13 | . . . . . . 2 2 . 2 . . . 4 2 . . 1 . . Robot Hacks Applied 47 | . . . . . . 2 2 . 2 3 1 . 13 18 . . 3 3 . parse_system 2 | . . . . . . . . . . 2 . . . . . . . . . no_distress 20 | . . . . . . . . . . . . . 3 12 . . 2 3 . generate_echo 1 | . . . . . . . . . . . . . 1 . . . . . . map_walls 1 | . . . . . . . . . . . . . 1 . . . . . . ignore_parts 6 | . . . . . . . . . . . . . 3 3 . . . . . disrupt_area 1 | . . . . . . . . . . . . . . 1 . . . . . overwrite_iff 1 | . . . . . . . . . . . . . 1 . . . . . . streamctrl_low 1 | . . . . . . . . . . 1 . . . . . . . . . formatsys_low 3 | . . . . . . . . . . . 1 . 1 1 . . . . . formatsys_high 11 | . . . . . . 2 2 . 2 . . . 3 1 . . 1 . . Relay Couplers Released 31 | . . . . . . 5 . . 8 . . 15 . . . . . 3 . Machine Destruction 31 | . . . . . . 5 . . 8 . . 15 . . . . . 3 . Attached 9 | . . . . . . 1 2 . 1 1 . . 3 . . . 1 . . Fabnet Peak Effective % . | . . . . . . . . . . . . . . . . . . . . Robots Rewired 13 | . . . . . . . . . 3 7 . . . 3 . . . . . Allies Hacked . | . . . . . . . . . . . . . . . . . . . . Hacks Repelled . | . . . . . . . . . . . . . . . . . . . . Allies | -11 -10 -10 -10 -9 -8 -8 -8 -8 -8 -8 -6 -6 -6 -6 -6 -6 -6 -5 -4 -------- Run | Yrd Mat Min Exi Min Mat Gar Mat Sto Gar Rec Fac Gar Fac Ext Cet Arc Hub Fac Fac Total Allies 41 | . 1 . . . . 2 2 . 5 8 1 2 6 8 . . 1 5 . Largest Group 9 | . 1 1 1 1 1 2 2 . 3 7 7 6 5 9 1 . 1 3 . Highest-Rated Group 336 | . 10 10 10 10 10 32 32 . 48 149 148 211 223 336 26 . 90 90 . Highest-Rated Ally 95 | . 10 10 10 10 10 16 16 . 16 27 27 95 95 90 26 . 90 31 . Total Orders 17 | . . 3 . 1 . . . 1 1 1 3 4 3 . . . . . . STAY 4 | . . . . . . . . . . . 2 2 . . . . . . . ROAM 1 | . . . . . . . . . 1 . . . . . . . . . . FOLLOW 4 | . . . . . . . . . . . 1 2 1 . . . . . . DROP 1 | . . . . . . . . . . . . . 1 . . . . . . COLLECT 2 | . . . . . . . . . . 1 . . 1 . . . . . . RETURN 5 | . . 3 . 1 . . . 1 . . . . . . . . . . . Ally Attacks 314 | . . . . 1 . 3 34 7 40 16 6 22 53 107 . . 5 20 . Total Damage 5698 | . . . . 20 . 46 432 51 493 224 105 297 2058 1503 . . 153 316 . Kills 48 | . . . . 1 . 1 4 1 4 2 . 3 20 10 . . . 2 . Allies Corrupted 1 | . . . . . . . . . . . . 1 . . . . . . . Allies Melted 1 | . . . . . . . . . . . . . . . . . 1 . . Intel | -11 -10 -10 -10 -9 -8 -8 -8 -8 -8 -8 -6 -6 -6 -6 -6 -6 -6 -5 -4 ------- Run | Yrd Mat Min Exi Min Mat Gar Mat Sto Gar Rec Fac Gar Fac Ext Cet Arc Hub Fac Fac Robot Analysis Total 1 | . . . . . . . . . . 1 . . . . . . . . . Derelict Logs Recovered 2 | . . 2 . . . . . . . . . . . . . . . . . Drone Launches 17 | . . 3 . 1 . . . 3 . . . 5 1 . . . . 4 . Drone Recoveries 14 | . . 3 . 1 . . . 3 . . . 3 . . . . . 4 . Exploration | -11 -10 -10 -10 -9 -8 -8 -8 -8 -8 -8 -6 -6 -6 -6 -6 -6 -6 -5 -4 ------------- Run | Yrd Mat Min Exi Min Mat Gar Mat Sto Gar Rec Fac Gar Fac Ext Cet Arc Hub Fac Fac Turns Passed 21390 | 82 1676 397 703 160 17 470 2090 1274 2606 1828 258 2571 1115 1950 913 589 865 1158 668 Spaces Moved 10373 | 45 729 260 571 97 9 192 940 408 931 697 75 1026 599 962 404 315 367 959 787 Core 457 | 24 . . . . . . . . . . . . . . . . . 53 380 Treads 7308 | 21 314 . . . . 138 779 408 931 697 75 1026 599 962 404 315 367 272 . Legs . | . . . . . . . . . . . . . . . . . . . . Wheels 1974 | . 415 260 571 97 9 54 161 . . . . . . . . . . . 407 Hover . | . . . . . . . . . . . . . . . . . . . . Flight 634 | . . . . . . . . . . . . . . . . . . 634 . Fastest Speed 29 | 50 135 135 120 105 108 108 108 160 160 240 240 160 160 160 160 160 160 29 50 Average Speed 165 | 145 178 135 122 119 108 202 175 239 222 240 240 207 160 160 160 160 162 82 70 Slowest Speed 410 | 200 320 135 135 120 108 240 410 240 240 240 240 240 160 160 400 160 320 245 150 Overloaded Moves . | . . . . . . . . . . . . . . . . . . . . Propulsion Burnouts . | . . . . . . . . . . . . . . . . . . . . Robots Hopped 6 | . . . . . . . . . . . . . . . . . . 6 . Cave-ins Triggered . | . . . . . . . . . . . . . . . . . . . . Exploration Rate (%) 51 | 4 77 68 93 43 3 39 46 40 73 94 3 93 11 89 93 100 32 19 13 Regions Visited 19 Branch Regions 9 Pre-discovered Areas 1 | . . 1 . . . . . . . . . . . . . . . . . Known Exits Taken 8 | . 1 . . . 1 . 1 1 . 1 1 . 1 . . . 1 . . Unknown Exits Taken 8 | 1 . 1 1 1 . . . . . . . . . 1 1 1 . 1 . Scrap Searched 2 | . . 1 . 1 . . . . . . . . . . . . . . . Spaces Dug 91 | . 2 2 . . . 11 32 7 4 2 . 2 5 5 . 1 . 14 4 Terrain Destroyed 879 | . 2 43 . 11 . 11 82 34 41 13 . 132 14 83 5 6 268 130 4 Melee 80 | . 2 2 . . . . 32 7 4 2 . 2 5 5 . 1 . 14 4 Projectile 126 | . . . . . . . 12 27 1 11 . 6 9 27 5 5 23 . . AOE 672 | . . 41 . 11 . 11 38 . 35 . . 124 . 51 . . 245 116 . Terrain Rammed . | . . . . . . . . . . . . . . . . . . . . Walls Destroyed . | . . . . . . . . . . . . . . . . . . . . Machines Disabled . | . . . . . . . . . . . . . . . . . . . . Actions | -11 -10 -10 -10 -9 -8 -8 -8 -8 -8 -8 -6 -6 -6 -6 -6 -6 -6 -5 -4 --------- Run | Yrd Mat Min Exi Min Mat Gar Mat Sto Gar Rec Fac Gar Fac Ext Cet Arc Hub Fac Fac Total 12827 | 54 927 296 577 126 16 252 1201 592 1247 785 114 1255 710 1194 523 352 508 1211 887 Wait 697 | . 34 17 . 16 3 29 51 81 97 30 5 35 39 55 29 2 31 71 72 Move 10347 | 44 728 259 570 96 9 191 939 408 930 696 75 1025 598 961 403 314 366 948 787 Hop 4 | . . . . . . . . . . . . . . . . . . 4 . Pick Up 178 | 1 28 4 1 2 . 7 19 10 14 5 4 17 10 12 2 3 14 21 4 Fast Attach 81 | 7 3 . . . . 2 8 5 1 . . 7 3 4 5 2 6 23 5 Attach 85 | . 2 . . 2 3 4 6 3 1 . 5 11 2 3 5 . 10 21 7 Detach 24 | . 1 . . . 1 1 3 2 . . . 1 1 1 . . 1 9 3 Swap 264 | . 11 7 1 3 . 3 42 16 47 5 11 28 14 40 8 7 12 9 . Drop 177 | . 8 2 5 . . 1 29 14 20 4 . 19 10 17 4 3 14 26 1 Fire 705 | 2 109 5 . 6 . 3 64 46 64 40 14 76 28 89 67 20 53 17 2 Melee 241 | . 3 2 . 1 . 11 39 7 67 5 . 32 5 12 . 1 . 51 5 Ram 1 | . . . . . . . . . . . . . . . . . . . 1 Kick . | . . . . . . . . . . . . . . . . . . . . Crush 2 | . . . . . . . 1 . . . . . . . . . 1 . . Escape Stasis 17 | . . . . . . . . . 6 . . . . . . . . 11 . Rewire 4 | . . . . . . . . . . . . 4 . . . . . . . Trap . | . . . . . . . . . . . . . . . . . . . . Miscellaneous . | . . . . . . . . . . . . . . . . . . . . Route ------- -11/Scrapyard -10/Materials (discovered 4 exits: *Mat x2 / *Min x2) -10/Mines -10/Exiles (discovered 2 exits: [*Min x2]) -9/Mines (discovered 2 exits: *Mat x2) -8/Materials (discovered 3 exits: Fac / Sto / Gar) -8/Garrison -8/Materials (discovered 3 exits: *Fac x2 / *Sto) -8/Storage (discovered 2 exits: Rec / Gar) -8/Garrison (discovered 3 exits: *Rec x3) -8/Recycling -6/Factory -6/Garrison (discovered 3 exits: *Fac x3) -6/Factory (discovered 2 exits: *Fac / *Ext) -6/Extension (discovered 3 exits: *Fac x2 / *Cet) -6/Cetus (discovered 2 exits: *Fac / *Arc) -6/Archives (discovered 3 exits: *Fac / *Hub x2) -6/Hub_04(d) (discovered 2 exits: *Fac x2) -5/Factory (discovered 2 exits: *Fac x2) -4/Factory (discovered 1 exit: [*Res]) History --------- Turn | Location | Event 34 | -11/Scrapyard | Discovered new exit (range 16) 83 | -11/Scrapyard | Entered Materials 324 | -10/Materials | Build established: Mutant 638 | -10/Materials | Discovered new exit (range 9) 998 | -10/Materials | Core integrity fell below 50% 1108 | -10/Materials | Discovered new exit (range 7) 1207 | -10/Materials | Discovered new exit (range 15) 1248 | -10/Materials | Identified exit to Mines 1261 | -10/Materials | Discovered new exit (range 16) 1286 | -10/Materials | Identified exit to Materials 1759 | -10/Materials | Entered Mines 1759 | -10/Mines | Accompanied by 1 ally 1846 | -10/Mines | Learned 2 Materials zone layouts 1914 | -10/Mines | Found the Drone Emporium 1917 | -10/Mines | Found Prototype Device 1918 | -10/Mines | Identified Thief Drone Bay 2144 | -10/Mines | Deemed a non-threat by the Exiles lab entrance 2146 | -10/Mines | Discovered new exit (range 5) 2156 | -10/Mines | Entered Exiles 2156 | -10/Exiles | Found Exiles lab abandoned 2156 | -10/Exiles | Accompanied by 1 ally 2178 | -10/Exiles | Discovered new exit (range 15) 2537 | -10/Exiles | Discovered new exit (range 14) 2859 | -10/Exiles | Entered Mines 2859 | -9/Mines | Accompanied by 1 ally 2860 | -9/Mines | Assembled infested the area 2865 | -9/Mines | Assisted by a Guerilla fighting off Assembled 2975 | -9/Mines | Discovered new exit (range 10) 2986 | -9/Mines | Discovered new exit (range 9) 3019 | -9/Mines | Entered Materials 3019 | -8/Materials | Accompanied by 1 ally 3019 | -8/Materials | Evolved 4 slots: Propulsion x1, Utility x1, Weapon x2 3020 | -8/Materials | Identified exit to Factory 3020 | -8/Materials | Identified exit to Storage 3036 | -8/Materials | Identified exit to Garrison 3036 | -8/Materials | Entered Garrison 3036 | -8/Garrison | Accompanied by 1 ally 3066 | -8/Garrison | Installed Relay Interface Framework 3106 | -8/Garrison | Triggered checkpoint 3162 | -8/Garrison | Garrison Relay disabled 3328 | -8/Garrison | Triggered checkpoint 3413 | -8/Garrison | Discovered new exit (range 8) 3506 | -8/Garrison | Entered Materials 3506 | -8/Materials | Accompanied by 2 allies 3519 | -8/Materials | Build established: Bothacker-Gunner 4016 | -8/Materials | Discovered exit to Factory (range 4) 4402 | -8/Materials | Build established: Scavenger-Gunner 4802 | -8/Materials | Discovered exit to Storage (range 13) 5321 | -8/Materials | Build established: Gunner 5539 | -8/Materials | Discovered exit to Factory (range 16) 5596 | -8/Materials | Entered Storage 5607 | -8/Storage | Lost 6 parts (1p3n2w) 5782 | -8/Storage | Repaired Gauss Rifle? 5892 | -8/Storage | Build established: Scavenger-Gunner 6170 | -8/Storage | Identified exit to Recycling 6225 | -8/Storage | Repaired Lgt. Treads 6312 | -8/Storage | Found Prototype Processor 6870 | -8/Storage | Identified exit to Garrison 6870 | -8/Storage | Entered Garrison 6996 | -8/Garrison | Triggered checkpoint 6999 | -8/Garrison | Core integrity fell below 50% 7097 | -8/Garrison | Garrison Relay disabled 7160 | -8/Garrison | Triggered checkpoint 7324 | -8/Garrison | Triggered checkpoint 7486 | -8/Garrison | Triggered checkpoint 7740 | -8/Garrison | Triggered checkpoint 7993 | -8/Garrison | Build established: Scavenger-Tank 8014 | -8/Garrison | Triggered checkpoint 8046 | -8/Garrison | Garrison Relay disabled 8156 | -8/Garrison | Discovered exit to Recycling (range 9) 8255 | -8/Garrison | Spotted B-75 Beast 8279 | -8/Garrison | Allies destroyed B-75 Beast 8324 | -8/Garrison | Found Imp. Powered Armor 8810 | -8/Garrison | Triggered checkpoint 8814 | -8/Garrison | Triggered checkpoint 8856 | -8/Garrison | Destroyed 7 combat bots 8946 | -8/Garrison | Triggered checkpoint 9037 | -8/Garrison | Discovered exit to Recycling (range 67) 9037 | -8/Garrison | Discovered exit to Recycling (range 23) 9037 | -8/Garrison | Discovered exit to Recycling (range 30) 9363 | -8/Garrison | Expanded RIF knowledge: Command Fork 9476 | -8/Garrison | Entered Recycling 9477 | -8/Recycling | Met a Zionite searching for Scraptown 10111 | -8/Recycling | Discovered new exit (range 14) 10203 | -8/Recycling | Identified exit to Factory 11304 | -8/Recycling | Entered Factory 11304 | -6/Factory | Accompanied by 7 allies 11304 | -6/Factory | Evolved 4 slots: Power x1, Utility x3 11312 | -6/Factory | Identified Exp. Targeting Computer 11421 | -6/Factory | Garrison activated, responded to threat 11562 | -6/Factory | Identified exit to Garrison 11562 | -6/Factory | Entered Garrison 11562 | -6/Garrison | Accompanied by 6 allies 11592 | -6/Garrison | Phase Generator disabled 11751 | -6/Garrison | Spotted B-75 Beast 11809 | -6/Garrison | Destroyed B-75 Beast 11943 | -6/Garrison | Lost 6 parts (1p2n2u1w) 11965 | -6/Garrison | Triggered checkpoint 11969 | -6/Garrison | Triggered checkpoint 12001 | -6/Garrison | Destroyed 9 combat bots 12116 | -6/Garrison | Triggered checkpoint 12201 | -6/Garrison | Build established: Scavenger-Gunner 12298 | -6/Garrison | Triggered checkpoint 12437 | -6/Garrison | Destroyed 8 combat bots 12453 | -6/Garrison | Found embedded Infiltrators 12480 | -6/Garrison | Garrison Relay disabled 12813 | -6/Garrison | Build established: Bothacker-Gunner 12874 | -6/Garrison | Triggered checkpoint 13046 | -6/Garrison | Triggered checkpoint 13165 | -6/Garrison | Garrison Relay disabled 13263 | -6/Garrison | Discovered new exit (range 12) 13403 | -6/Garrison | Build established: Scavenger-Gunner 13493 | -6/Garrison | Expanded RIF knowledge: Watcher Feeds 13522 | -6/Garrison | Discovered new exit (range 12) 13532 | -6/Garrison | Triggered checkpoint 13611 | -6/Garrison | Identified exit to Factory 13899 | -6/Garrison | Build established: Bothacker-Gunner 13976 | -6/Garrison | Discovered exit to Factory (range 13) 13998 | -6/Garrison | Triggered checkpoint 14086 | -6/Garrison | Garrison Relay disabled 14133 | -6/Garrison | Entered Factory 14133 | -6/Factory | Accompanied by 2 allies 14430 | -6/Factory | Garrison activated, responded to threat 14617 | -6/Factory | Discovered new exit (range 13) 14727 | -6/Factory | Discovered new exit (range 10) 14741 | -6/Factory | Identified exit to Extension 14778 | -6/Factory | Identified exit to Factory 14833 | -6/Factory | First assault squad dispatched 15248 | -6/Factory | Entered Extension 15248 | -6/Extension | Accompanied by 4 allies 15516 | -6/Extension | Rescued a captive Derelict 15711 | -6/Extension | Build established: Commander-Tank 15716 | -6/Extension | Rescued a captive Derelict 15761 | -6/Extension | Energy Cycler disabled 15768 | -6/Extension | Rescued a captive Derelict 15894 | -6/Extension | Spotted B-75 Beast 16063 | -6/Extension | Build established: Commander-Gunner 16348 | -6/Extension | Disrupted transfer network 16526 | -6/Extension | Build established: Scavenger-Gunner 16565 | -6/Extension | Destroyed B-75 Beast 16573 | -6/Extension | Spotted B-75 Beast 16586 | -6/Extension | Discovered exit to Factory (range 16) 16623 | -6/Extension | Lost 5 allies 16645 | -6/Extension | Destroyed B-75 Beast 16764 | -6/Extension | Extracted ID and sensor layout for unrecognized location from A7's data core 17164 | -6/Extension | Discovered exit to Factory (range 10) 17165 | -6/Extension | Discovered new exit (range 6) 17196 | -6/Extension | Disrupted transfer network 17198 | -6/Extension | Entered Cetus 17198 | -6/Cetus | Accompanied by 1 ally 17220 | -6/Cetus | Spotted Cetus Guard 17220 | -6/Cetus | Spotted Cetus Guard 17222 | -6/Cetus | Spotted Cetus Guard 17222 | -6/Cetus | Spotted Cetus Guard 17227 | -6/Cetus | Destroyed Cetus Guard 17246 | -6/Cetus | Destroyed Cetus Guard 17267 | -6/Cetus | Destroyed Cetus Guard 17281 | -6/Cetus | Destroyed Cetus Guard 17292 | -6/Cetus | Lost 5 parts (1n1u3w) 17432 | -6/Cetus | Discovered exit to Factory (range 19) 17948 | -6/Cetus | Security sweep announced 18012 | -6/Cetus | Discovered new exit (range 19) 18046 | -6/Cetus | Spotted Cetus Guard 18047 | -6/Cetus | Spotted Cetus Guard 18049 | -6/Cetus | Spotted Cetus Guard 18050 | -6/Cetus | Spotted Cetus Guard 18111 | -6/Cetus | Entered Archives 18243 | -6/Archives | Discovered new exit (range 18) 18247 | -6/Archives | Discovered exit to Factory (range 20) 18259 | -6/Archives | Discovered new exit (range 13) 18302 | -6/Archives | Unable to access archive contents 18333 | -6/Archives | Unable to access archive contents 18393 | -6/Archives | Unable to access archive contents 18700 | -6/Archives | Entered Hub_04(d) 18798 | -6/Hub_04(d) | Discovered exit to Factory (range 18) 18829 | -6/Hub_04(d) | Found Prototype Launcher 18898 | -6/Hub_04(d) | Identified Scatter Rocket Array 18911 | -6/Hub_04(d) | Found Scatter Rocket Array 18973 | -6/Hub_04(d) | Discovered exit to Factory (range 20) 18979 | -6/Hub_04(d) | Core integrity fell below 50% 19050 | -6/Hub_04(d) | First assault squad dispatched 19378 | -6/Hub_04(d) | Lost 4 parts (2p1u1w) 19448 | -6/Hub_04(d) | Garrison activated, responded to threat 19495 | -6/Hub_04(d) | Core integrity fell below 20% 19506 | -6/Hub_04(d) | Destroyed 8 combat bots 19547 | -6/Hub_04(d) | Lost 8 parts (2p1n1u4w) 19565 | -6/Hub_04(d) | Entered Factory 19565 | -5/Factory | Evolved 2 slots: Utility x2 19664 | -5/Factory | Fabricated E-15 Imp (x2) 20042 | -5/Factory | Build established: Scavenger-Mutant 20070 | -5/Factory | Assembled infested Garrison Access 20109 | -5/Factory | Destroyed 9 combat bots 20278 | -5/Factory | Lost 7 parts (1p1n2u3w) 20371 | -5/Factory | Lost 7 parts (1p3n2u1w) 20501 | -5/Factory | Cargo convoy interrupted 20552 | -5/Factory | Garrison activated, responded to threat 20625 | -5/Factory | Lost 4 parts (1n3u) 20661 | -5/Factory | Core integrity fell below 50% 20675 | -5/Factory | Lost 4 parts (1p2n1w) 20675 | -5/Factory | System corruption reached 10% 20698 | -5/Factory | Discovered new exit (range 17) 20700 | -5/Factory | Discovered new exit (range 13) 20701 | -5/Factory | Allied Derelicts emerged from ambush trap array 20702 | -5/Factory | Core integrity fell below 20% 20723 | -5/Factory | Entered another Factory area 20723 | -4/Factory | Evolved 2 slots: Propulsion x1, Utility x1 20729 | -4/Factory | Discovered new exit (range 12) 20746 | -4/Factory | Lost 3 allies 20751 | -4/Factory | Lost 3 parts (1n2u) 21053 | -4/Factory | Identified exit to DSF 21391 | -4/Factory | Self-destructed Last Messages --------------- 21289_ Slug penetrates Wall. 21289_ Penetrated by Slug. 21289_ Great Axe destroyed. 21312_ Drone sends a signal. 21343_ Triggered Gamma Bomb Trap. 21343_ A bubble of electromagnetic force engulfs the area. 21343_ Door malfunctions. 21344_ U-05 Engineer repairs door. 21346_ U-05 Engineer lays Concrete. 21348_ ALERT: Rogue bot located, Programmers report to Factory Zone 5T. 21348_ U-05 Engineer lays Concrete. 21354_ Penetrated by Slug. 21357_ Slug penetrates Wall. 21374_ Wheel destroyed. 21382_ Slug penetrates Wall. 21390_ Slug penetrates G-67 Veteran. 21390_ Slug penetrates Wall. 21390_ Penetrated by Slug. 21390_ Slug penetrates Wall. 21390_ Imp. Light Armor Plating destroyed. Map ----- +----------------------------------------------------+ | ?????????????????????????????????????????????????? | | ?????????????????????????????????????????????????? | | ?????????????????????????????????????????????????? | | ?????????????????????????????????????????????????? | | ?????????????????????????????????????????????????? | | ?????????????????????????????????????????????????? | | ????????????"???? ?? ? ??# ?????????????????????? | | ?????????????????? ??????? ????????????????????? | | ?????????????? ?#??#???#?## ??#???????????????? | | ?????#??????##?????#?????????????????????????????? | | ????????#????????????#???#?#?##??? ??????????????? | | ?????#??#????##??#?????#??#????????? ????????????? | | ??????????????????????? ?????? ?# ???????????? | | ??????????##???#???##?? ?? ??????#?? ????????????? | | ??????##??#?#?##????# ? ?? ?????????????????????? | | ???#???#??#?#??##??????? ?? ?? ?#???#?#?????????? | | ???##???###????#????? ? ?? ??????#?????????? ? | | ???#?#?######???#???# ??? ??? ?/?????#???????? ? | | ??????????????#?#?#???? ? ? ?????????????????? | | ??##???##??#????????# ?? ? ?????? ???#????????? | | ??????????###?#????##? ??? ??? ??# ?? ?????##? | | ??#?#?#?##?#??#???###? ? ??? ? ? ?????? ???? ? | | ??#?##?#???#?#????##? ? ?# + ? ????? ??# | | ???#??#????#?#?###??# ? ? ? ? ?# #? ? ?? ?#?? | | ???#??######??###############+?#?# #? ?? ### | | ?????? ? ? ??# @ #? ?#?# #??? ??????? | | ????? ??""???# g""" """ ## ?#?# #? ? ??? ### | | ##? ? ?"??"?? # """g""" ## #### # ? ? ? ##? | | ?#? ?"?"?" # """ """ ## ?### ####?#??##?## | | ??? ?? """?"? # ## ##?# #?#?#?#?#???# | | ?? ? ?# """ """ g#? #?# #? ? ? ? ? | | ???? ?????? # """ """ h## ### ?# "?"?""??" | | ? ? ""??? ?# """ """ + ### ## ? | | ???? ? ?"? ?# g g ## #?? ??? """?""""? | | ??? ???? ? # ## ### ##? ?? | | ????? ??? ? # ## #???# ############## | | ????? ?? ??# ## ##### # !! #### | | ?????############/########### ##### # ! #### | | + #### | | ? ##### #### #### | | ? #?### #####/########### | | ?? #?### | | ?? #?### ######## ######## | | ???#######+#######+#####?# #########/#######? | | ?? ???????? # ?? / #?# ###### | | ?????? ??? ?# ?? ? ###### ### """ """ ####?# | | ?"??#???? ??? " ? " #### # """ """ ###### | | ??????? ?#?"?" " ?#?# # """ """ #?#### | | ????#??? ??????" " ?### + ###### | | ???#????????#???" " ? ?#?# # ####?# | +----------------------------------------------------+ Best States ------------- Heat Dissipation 68 Energy Generation 33 Energy Capacity 1110 Matter Stores 391 Matter Capacity 450 Sight Range 20 Terrain Scan Range 20 Terrain Scan Density 210 ECM Strength 1 Jamming Range 12 Armor Coverage 400 Utility Shielding 33 Evasion (%) 74 Targeting Accuracy 32 Melee Accuracy 8 Target Analysis 5 Recoil Reduction 9 Offensive Hacking 12 Defensive Hacking 12 Relay Coupler Types 2 Relay Coupler Value 61 Authchip Count 1 Item Schematics ----------------- None Robot Schematics ------------------ None Fabricated ------------ E-15 Imp | x2 | -5/Factory | Preloaded Alien Tech Used ----------------- None Achievements -------------- Infiltrator Preemptive Strike Prolific Hacker Quantum Hacking Treasure Hunter Challenges ------------ None Game ------ Seed PrecisionThiefField Manual? 0 Play Time 06:52:30 Cumulative 97.3 hours Start 2024.10.26 @ 09:57:26 End 2024.10.26 @ 18:16:46 Sessions 5 Manual Loads 0 Difficulty Rogue Special Mode None Game No. 31 Rogue 31 Adventurer 0 Explorer 0 Win Type - Total 0 Types 0/0/0/0/0/0/0/0/0 Lore% 17 Gallery% 38 Achievement% 35 Wizard Run 0 Options --------- Layout 0 ASCII 0 Keyboard 0 Movement Mouse Keybinds 0 Fullscreen 1 Font 36/Smallcaps Map View 76x50 Zoom Use 0% Tactical HUD 1 Map Filters NONE Filters NONE Steam X RUN: 0b772176-6c9e-4410-adcb-08e0fda75970